[Event "November 21 Early 2023"]
[Site "https://www.chess.com"]
[Date "2023.11.21"]
[Round "2"]
[White "Bommini Mounika Akshaya"]
[Black "Orlov, Georgi"]
[Result "0-1"]
[Board "207"]
[TimeControl "180+1"]
[WhiteFideId "25019872"]
[BlackFideId "2011271"]
[WhiteElo "2073"]
[BlackElo "2493"]
[WhiteTeam "IND"]
[BlackTeam "USA"]
[WhiteClock "0:00:30"]
[BlackClock "0:02:06"]

1. d4 {[%clk 0:02:54]}  Nf6 {[%clk 0:02:59]} 2. c4 {[%clk 0:02:54]}  Nc6 {[%clk 0:02:58]} 3. Nc3 {[%clk 0:02:53]}  e5 {[%clk 0:02:58]} 4. d5 {[%clk 0:02:50]}  Ne7 {[%clk 0:02:58]} 5. e4 {[%clk 0:02:49]}  Ng6 {[%clk 0:02:58]} 6. h4 {[%clk 0:02:48]}  h5 {[%clk 0:02:56]} 7. Nf3 {[%clk 0:02:48]}  Ng4 {[%clk 0:02:49]} 8. Be2 {[%clk 0:02:46]}  Bc5 {[%clk 0:02:49]} 9. Bg5 {[%clk 0:01:54]}  Bxf2+ {[%clk 0:02:42]} 10. Kf1 {[%clk 0:01:49]}  f6 {[%clk 0:02:42]} 11. Nd2 {[%clk 0:01:20]}  d6 {[%clk 0:02:21]} 12. Bxg4 {[%clk 0:01:10]}  Bxg4 {[%clk 0:02:19]} 13. Nf3 {[%clk 0:01:10]}  fxg5 {[%clk 0:02:10]} 14. Kxf2 {[%clk 0:01:09]}  Nxh4 {[%clk 0:02:09]} 15. Kg1 {[%clk 0:00:54]}  Bxf3 {[%clk 0:02:07]} 16. gxf3 {[%clk 0:00:54]}  O-O {[%clk 0:02:08]} 17. Rh3 {[%clk 0:00:30]}  Qf6 {[%clk 0:02:06]} 0-1

[Event "November 21 Early 2023"]
[Site "https://www.chess.com"]
[Date "2023.11.21"]
[Round "2"]
[White "Kochiev, Ivan"]
[Black "Pasmendjambvirgulptipon98"]
[Result "1-0"]
[Board "209"]
[TimeControl "180+1"]
[WhiteFideId "2917890"]
[WhiteElo "2285"]
[BlackElo "2248"]
[WhiteTeam "BUL"]
[WhiteClock "0:00:21"]
[BlackClock "0:00:29"]

1. e4 {[%clk 0:03:00]}  e5 {[%clk 0:02:59]} 2. Nf3 {[%clk 0:03:01]}  Nc6 {[%clk 0:02:59]} 3. d4 {[%clk 0:03:01]}  exd4 {[%clk 0:02:59]} 4. Bc4 {[%clk 0:03:02]}  Nf6 {[%clk 0:02:58]} 5. O-O {[%clk 0:03:02]}  Nxe4 {[%clk 0:02:47]} 6. Nc3 {[%clk 0:03:02]}  dxc3 {[%clk 0:02:44]} 7. Bxf7+ {[%clk 0:03:02]}  Kxf7 {[%clk 0:02:42]} 8. Qd5+ {[%clk 0:03:03]}  Ke8 {[%clk 0:02:30]} 9. Re1 {[%clk 0:03:03]}  Be7 {[%clk 0:02:03]} 10. Rxe4 {[%clk 0:02:59]}  Kf8 {[%clk 0:01:52]} 11. Bg5 {[%clk 0:01:20]}  Bxg5 {[%clk 0:01:21]} 12. Nxg5 {[%clk 0:01:12]}  Qf6 {[%clk 0:01:21]} 13. Rae1 {[%clk 0:01:01]}  Ne7 {[%clk 0:00:53]} 14. Rxe7 {[%clk 0:00:49]}  Qxe7 {[%clk 0:00:54]} 15. Rxe7 {[%clk 0:00:41]}  Kxe7 {[%clk 0:00:55]} 16. Qf7+ {[%clk 0:00:24]}  Kd6 {[%clk 0:00:46]} 17. Ne4+ {[%clk 0:00:22]}  Kc6 {[%clk 0:00:35]} 18. Qc4+ {[%clk 0:00:21]}  Kb6 {[%clk 0:00:34]} 19. Qb4+ {[%clk 0:00:21]}  Kc6 {[%clk 0:00:29]} 20. Qc5# {[%clk 0:00:21]} 1-0

[Event "November 21 Early 2023"]
[Site "https://www.chess.com"]
[Date "2023.11.21"]
[Round "2"]
[White "Devaev, Alexander"]
[Black "Skibbe, Willi"]
[Result "1-0"]
[Board "210"]
[TimeControl "180+1"]
[WhiteFideId "4169395"]
[BlackFideId "4682190"]
[WhiteElo "2172"]
[BlackElo "2244"]
[WhiteTeam "RUS"]
[BlackTeam "GER"]
[WhiteClock "0:00:09"]
[BlackClock "0:00:00"]

1. Nf3 {[%clk 0:03:00]}  e6 {[%clk 0:03:00]} 2. d4 {[%clk 0:03:00]}  d5 {[%clk 0:03:01]} 3. c4 {[%clk 0:03:00]}  c6 {[%clk 0:03:01]} 4. e3 {[%clk 0:02:59]}  f5 {[%clk 0:02:59]} 5. b3 {[%clk 0:02:58]}  Nf6 {[%clk 0:03:00]} 6. Bd3 {[%clk 0:02:58]}  Bb4+ {[%clk 0:02:59]} 7. Bd2 {[%clk 0:02:58]}  Bd6 {[%clk 0:02:59]} 8. O-O {[%clk 0:02:58]}  O-O {[%clk 0:02:59]} 9. a3 {[%clk 0:02:57]}  b6 {[%clk 0:02:59]} 10. Qc2 {[%clk 0:02:48]}  Bb7 {[%clk 0:02:49]} 11. Bc3 {[%clk 0:02:26]}  Nbd7 {[%clk 0:02:40]} 12. Ne5 {[%clk 0:02:26]}  Rc8 {[%clk 0:02:37]} 13. Nd2 {[%clk 0:02:17]}  Ne4 {[%clk 0:02:35]} 14. Bb2 {[%clk 0:02:17]}  Nxd2 {[%clk 0:02:31]} 15. Qxd2 {[%clk 0:02:16]}  Nxe5 {[%clk 0:02:31]} 16. dxe5 {[%clk 0:02:16]}  Be7 {[%clk 0:02:32]} 17. Rad1 {[%clk 0:02:07]}  c5 {[%clk 0:02:18]} 18. Qc2 {[%clk 0:02:05]}  Qc7 {[%clk 0:02:15]} 19. f4 {[%clk 0:01:50]}  Rfd8 {[%clk 0:02:10]} 20. a4 {[%clk 0:01:45]}  Qc6 {[%clk 0:02:08]} 21. cxd5 {[%clk 0:01:38]}  Rxd5 {[%clk 0:01:12]} 22. Bb5 {[%clk 0:01:38]}  Qc7 {[%clk 0:01:09]} 23. Bc4 {[%clk 0:01:38]}  Rcd8 {[%clk 0:01:01]} 24. Bxd5 {[%clk 0:01:28]}  Bxd5 {[%clk 0:00:59]} 25. Rd2 {[%clk 0:01:25]}  a6 {[%clk 0:00:50]} 26. Rfd1 {[%clk 0:01:26]}  b5 {[%clk 0:00:51]} 27. axb5 {[%clk 0:01:22]}  axb5 {[%clk 0:00:50]} 28. Rxd5 {[%clk 0:01:22]}  exd5 {[%clk 0:00:49]} 29. Qxf5 {[%clk 0:01:23]}  c4 {[%clk 0:00:47]} 30. Qe6+ {[%clk 0:01:19]}  Kf8 {[%clk 0:00:45]} 31. Rxd5 {[%clk 0:00:43]}  c3 {[%clk 0:00:39]} 32. Rxd8+ {[%clk 0:00:30]}  Qxd8 {[%clk 0:00:40]} 33. Qf5+ {[%clk 0:00:23]}  Kg8 {[%clk 0:00:35]} 34. Bxc3 {[%clk 0:00:24]}  Bc5 {[%clk 0:00:30]} 35. Kf2 {[%clk 0:00:17]}  Qa8 {[%clk 0:00:19]} 36. Qe6+ {[%clk 0:00:15]}  Kh8 {[%clk 0:00:19]} 37. Bd4 {[%clk 0:00:13]}  Qa2+ {[%clk 0:00:17]} 38. Kf3 {[%clk 0:00:12]}  Qa8+ {[%clk 0:00:16]} 39. Kg3 {[%clk 0:00:12]}  Bf8 {[%clk 0:00:15]} 40. f5 {[%clk 0:00:12]}  h6 {[%clk 0:00:11]} 41. f6 {[%clk 0:00:12]}  Qe4 {[%clk 0:00:10]} 42. Qg4 {[%clk 0:00:09]}  Qb1 {[%clk 0:00:00]} 43. e6 {[%clk 0:00:09]} 1-0

[Event "November 21 Early 2023"]
[Site "https://www.chess.com"]
[Date "2023.11.21"]
[Round "2"]
[White "Kuchava, Ana"]
[Black "HeroWilczek"]
[Result "1-0"]
[Board "214"]
[TimeControl "180+1"]
[WhiteFideId "13605348"]
[WhiteElo "1950"]
[BlackElo "2484"]
[WhiteTeam "GEO"]
[WhiteClock "0:00:47"]
[BlackClock "0:01:02"]

1. d4 {[%clk 0:03:00]}  d5 {[%clk 0:02:59]} 2. Nf3 {[%clk 0:02:59]}  Nf6 {[%clk 0:02:59]} 3. c4 {[%clk 0:02:58]}  e6 {[%clk 0:02:58]} 4. Nc3 {[%clk 0:02:58]}  Be7 {[%clk 0:02:57]} 5. Bg5 {[%clk 0:02:57]}  h6 {[%clk 0:02:57]} 6. Bh4 {[%clk 0:02:56]}  O-O {[%clk 0:02:57]} 7. e3 {[%clk 0:02:56]}  Ne4 {[%clk 0:02:57]} 8. Bxe7 {[%clk 0:02:55]}  Qxe7 {[%clk 0:02:58]} 9. Rc1 {[%clk 0:02:52]}  Nxc3 {[%clk 0:02:54]} 10. Rxc3 {[%clk 0:02:49]}  c6 {[%clk 0:02:52]} 11. Bd3 {[%clk 0:02:48]}  Nd7 {[%clk 0:02:53]} 12. O-O {[%clk 0:02:44]}  dxc4 {[%clk 0:02:53]} 13. Bxc4 {[%clk 0:02:43]}  e5 {[%clk 0:02:54]} 14. Qc2 {[%clk 0:02:21]}  exd4 {[%clk 0:02:49]} 15. exd4 {[%clk 0:02:20]}  Nb6 {[%clk 0:02:44]} 16. Bb3 {[%clk 0:02:17]}  Qf6 {[%clk 0:02:38]} 17. Ne5 {[%clk 0:02:10]}  Be6 {[%clk 0:02:27]} 18. a4 {[%clk 0:02:09]}  Bxb3 {[%clk 0:02:24]} 19. Qxb3 {[%clk 0:02:10]}  Rad8 {[%clk 0:02:17]} 20. Rf3 {[%clk 0:02:05]}  Qe7 {[%clk 0:01:56]} 21. Ng6 {[%clk 0:02:04]}  Qe4 {[%clk 0:01:44]} 22. Nxf8 {[%clk 0:02:01]}  Rxf8 {[%clk 0:01:45]} 23. a5 {[%clk 0:01:59]}  Nd5 {[%clk 0:01:44]} 24. Qxb7 {[%clk 0:01:59]}  Nf4 {[%clk 0:01:40]} 25. Qxa7 {[%clk 0:01:48]}  Rd8 {[%clk 0:01:35]} 26. a6 {[%clk 0:00:50]}  Rd5 {[%clk 0:01:02]} 27. Qb8+ {[%clk 0:00:47]} 1-0

[Event "November 21 Early 2023"]
[Site "https://www.chess.com"]
[Date "2023.11.21"]
[Round "2"]
[White "Saravana, Krishnan P."]
[Black "Dodaro, Mattia"]
[Result "1/2-1/2"]
[Board "215"]
[TimeControl "180+1"]
[WhiteFideId "5018382"]
[BlackFideId "28583400"]
[WhiteElo "2167"]
[BlackElo "2221"]
[WhiteTeam "IND"]
[BlackTeam "ITA"]
[WhiteClock "0:00:39"]
[BlackClock "0:00:05"]

1. Nf3 {[%clk 0:02:59]}  a6 {[%clk 0:02:53]} 2. e4 {[%clk 0:02:58]}  e6 {[%clk 0:02:53]} 3. d4 {[%clk 0:02:58]}  d5 {[%clk 0:02:52]} 4. Nc3 {[%clk 0:02:58]}  Nf6 {[%clk 0:02:51]} 5. Bg5 {[%clk 0:02:51]}  dxe4 {[%clk 0:02:35]} 6. Nxe4 {[%clk 0:02:51]}  Be7 {[%clk 0:02:36]} 7. Bxf6 {[%clk 0:02:48]}  gxf6 {[%clk 0:02:36]} 8. Qd2 {[%clk 0:02:48]}  f5 {[%clk 0:02:35]} 9. Ng3 {[%clk 0:02:45]}  b5 {[%clk 0:02:36]} 10. a4 {[%clk 0:02:43]}  b4 {[%clk 0:02:17]} 11. Bc4 {[%clk 0:02:33]}  Bb7 {[%clk 0:02:13]} 12. d5 {[%clk 0:02:28]}  Bxd5 {[%clk 0:01:52]} 13. Bxd5 {[%clk 0:02:27]}  Qxd5 {[%clk 0:01:53]} 14. Qxd5 {[%clk 0:02:24]}  exd5 {[%clk 0:01:54]} 15. Nxf5 {[%clk 0:02:25]}  Bf6 {[%clk 0:01:53]} 16. O-O-O {[%clk 0:02:24]}  c6 {[%clk 0:01:43]} 17. Rhe1+ {[%clk 0:02:24]}  Kf8 {[%clk 0:01:37]} 18. Ne5 {[%clk 0:02:13]}  h5 {[%clk 0:00:55]} 19. Nd6 {[%clk 0:02:11]}  Ra7 {[%clk 0:00:44]} 20. f4 {[%clk 0:02:08]}  Re7 {[%clk 0:00:33]} 21. g3 {[%clk 0:01:55]}  Bxe5 {[%clk 0:00:18]} 22. Rxe5 {[%clk 0:01:43]}  Rxe5 {[%clk 0:00:18]} 23. fxe5 {[%clk 0:01:44]}  Nd7 {[%clk 0:00:19]} 24. Re1 {[%clk 0:01:43]}  Rh6 {[%clk 0:00:16]} 25. c3 {[%clk 0:01:37]}  Nxe5 {[%clk 0:00:15]} 26. Rxe5 {[%clk 0:01:35]}  Rxd6 {[%clk 0:00:16]} 27. cxb4 {[%clk 0:01:35]}  h4 {[%clk 0:00:16]} 28. gxh4 {[%clk 0:01:34]}  Rg6 {[%clk 0:00:14]} 29. b5 {[%clk 0:01:33]}  axb5 {[%clk 0:00:14]} 30. axb5 {[%clk 0:01:34]}  cxb5 {[%clk 0:00:12]} 31. Rxd5 {[%clk 0:01:34]}  Rg1+ {[%clk 0:00:11]} 32. Rd1 {[%clk 0:01:32]}  Rg2 {[%clk 0:00:12]} 33. Rd2 {[%clk 0:01:32]}  Rg4 {[%clk 0:00:11]} 34. Rd5 {[%clk 0:01:32]}  Rxh4 {[%clk 0:00:11]} 35. Rxb5 {[%clk 0:01:31]}  Rxh2 {[%clk 0:00:11]} 36. Re5 {[%clk 0:01:31]}  f6 {[%clk 0:00:08]} 37. Re1 {[%clk 0:01:30]}  Kf7 {[%clk 0:00:08]} 38. Kb1 {[%clk 0:01:28]}  f5 {[%clk 0:00:08]} 39. Ka2 {[%clk 0:01:28]}  Kf6 {[%clk 0:00:09]} 40. Ka3 {[%clk 0:01:28]}  Rh3+ {[%clk 0:00:08]} 41. Ka4 {[%clk 0:01:27]}  f4 {[%clk 0:00:09]} 42. b4 {[%clk 0:01:27]}  Kf5 {[%clk 0:00:09]} 43. b5 {[%clk 0:01:27]}  f3 {[%clk 0:00:05]} 44. b6 {[%clk 0:01:27]}  Kf4 {[%clk 0:00:04]} 45. b7 {[%clk 0:01:23]}  Rh8 {[%clk 0:00:04]} 46. Kb5 {[%clk 0:01:23]}  f2 {[%clk 0:00:04]} 47. Re7 {[%clk 0:01:23]}  Rf8 {[%clk 0:00:03]} 48. Rf7+ {[%clk 0:01:18]}  Rxf7 {[%clk 0:00:03]} 49. b8=Q+ {[%clk 0:01:18]}  Kf3 {[%clk 0:00:04]} 50. Qa8+ {[%clk 0:01:17]}  Ke2 {[%clk 0:00:04]} 51. Qe4+ {[%clk 0:01:15]}  Kd1 {[%clk 0:00:02]} 52. Qd5+ {[%clk 0:01:13]}  Ke1 {[%clk 0:00:03]} 53. Qe6+ {[%clk 0:01:12]}  Kd1 {[%clk 0:00:03]} 54. Qxf7 {[%clk 0:01:12]}  Ke1 {[%clk 0:00:04]} 55. Qe6+ {[%clk 0:01:11]}  Kd1 {[%clk 0:00:04]} 56. Qc4 {[%clk 0:01:05]}  Ke1 {[%clk 0:00:05]} 57. Qe4+ {[%clk 0:01:05]}  Kf1 {[%clk 0:00:05]} 58. Kc4 {[%clk 0:01:04]}  Kg1 {[%clk 0:00:05]} 59. Qg4+ {[%clk 0:01:03]}  Kh1 {[%clk 0:00:04]} 60. Qh3+ {[%clk 0:01:02]}  Kg1 {[%clk 0:00:05]} 61. Qg3+ {[%clk 0:01:01]}  Kh1 {[%clk 0:00:06]} 62. Qd3 {[%clk 0:00:55]}  Kg1 {[%clk 0:00:06]} 63. Qe3 {[%clk 0:00:55]}  Kh1 {[%clk 0:00:06]} 64. Qe2 {[%clk 0:00:53]}  Kg1 {[%clk 0:00:06]} 65. Qxf2+ {[%clk 0:00:39]}  Kxf2 {[%clk 0:00:05]} 1/2-1/2

[Event "November 21 Early 2023"]
[Site "https://www.chess.com"]
[Date "2023.11.21"]
[Round "2"]
[White "Pinero Rodriguez, Carlos Jose"]
[Black "mataMNsMS"]
[Result "1-0"]
[Board "216"]
[TimeControl "180+1"]
[WhiteFideId "3901726"]
[WhiteElo "2191"]
[BlackElo "2221"]
[WhiteTeam "VEN"]
[WhiteClock "0:01:06"]
[BlackClock "0:01:11"]

1. e4 {[%clk 0:03:00]}  c5 {[%clk 0:02:59]} 2. Nf3 {[%clk 0:03:00]}  Nc6 {[%clk 0:03:00]} 3. d4 {[%clk 0:02:59]}  cxd4 {[%clk 0:03:01]} 4. Nxd4 {[%clk 0:02:59]}  e5 {[%clk 0:03:02]} 5. Nb5 {[%clk 0:02:59]}  a6 {[%clk 0:03:02]} 6. Nd6+ {[%clk 0:02:56]}  Bxd6 {[%clk 0:03:03]} 7. Qxd6 {[%clk 0:02:56]}  Qe7 {[%clk 0:03:03]} 8. Qxe7+ {[%clk 0:02:24]}  Ngxe7 {[%clk 0:03:04]} 9. Nc3 {[%clk 0:02:12]}  Nb4 {[%clk 0:03:04]} 10. Bd3 {[%clk 0:02:08]}  d5 {[%clk 0:03:03]} 11. a3 {[%clk 0:02:01]}  Nxd3+ {[%clk 0:03:02]} 12. cxd3 {[%clk 0:02:02]}  dxe4 {[%clk 0:02:58]} 13. dxe4 {[%clk 0:02:03]}  O-O {[%clk 0:02:57]} 14. Be3 {[%clk 0:02:03]}  Nc6 {[%clk 0:02:57]} 15. O-O-O {[%clk 0:02:02]}  Be6 {[%clk 0:02:56]} 16. Bb6 {[%clk 0:01:59]}  Bb3 {[%clk 0:02:55]} 17. Rd6 {[%clk 0:01:57]}  Rac8 {[%clk 0:02:55]} 18. Kb1 {[%clk 0:01:49]}  Rfe8 {[%clk 0:02:53]} 19. Rc1 {[%clk 0:01:49]}  Re6 {[%clk 0:02:51]} 20. Rd7 {[%clk 0:01:40]}  g6 {[%clk 0:02:32]} 21. Nd5 {[%clk 0:01:33]}  Kf8 {[%clk 0:02:08]} 22. Rxb7 {[%clk 0:01:31]}  Bxd5 {[%clk 0:01:35]} 23. exd5 {[%clk 0:01:28]}  Ne7 {[%clk 0:01:36]} 24. Rxc8+ {[%clk 0:01:21]}  Nxc8 {[%clk 0:01:36]} 25. Bc5+ {[%clk 0:01:20]}  Re7 {[%clk 0:01:33]} 26. Rb8 {[%clk 0:01:13]}  Ke8 {[%clk 0:01:31]} 27. Rxc8+ {[%clk 0:01:10]}  Kd7 {[%clk 0:01:31]} 28. Bxe7 {[%clk 0:01:10]}  Kxc8 {[%clk 0:01:31]} 29. Bf6 {[%clk 0:01:10]}  e4 {[%clk 0:01:31]} 30. Be5 {[%clk 0:01:08]}  Kd7 {[%clk 0:01:32]} 31. Kc2 {[%clk 0:01:08]}  f5 {[%clk 0:01:26]} 32. Kc3 {[%clk 0:01:07]}  h5 {[%clk 0:01:19]} 33. h4 {[%clk 0:01:06]}  Ke7 {[%clk 0:01:11]} 34. Kd4 {[%clk 0:01:06]} 1-0

[Event "November 21 Early 2023"]
[Site "https://www.chess.com"]
[Date "2023.11.21"]
[Round "2"]
[White "Jimenez Fernandez, Rebeca"]
[Black "Tomaszewski, Kacper"]
[Result "1-0"]
[Board "217"]
[TimeControl "180+1"]
[WhiteFideId "32070934"]
[BlackFideId "1127373"]
[WhiteElo "2015"]
[BlackElo "2211"]
[WhiteTeam "ESP"]
[BlackTeam "POL"]
[WhiteClock "0:00:46"]
[BlackClock "0:00:55"]

1. e4 {[%clk 0:03:00]}  Nc6 {[%clk 0:02:59]} 2. d4 {[%clk 0:02:59]}  d5 {[%clk 0:02:59]} 3. exd5 {[%clk 0:02:58]}  Qxd5 {[%clk 0:03:00]} 4. Nf3 {[%clk 0:02:56]}  Bg4 {[%clk 0:02:57]} 5. Nc3 {[%clk 0:02:57]}  Qe6+ {[%clk 0:02:51]} 6. Be3 {[%clk 0:02:53]}  O-O-O {[%clk 0:02:47]} 7. d5 {[%clk 0:02:49]}  Qf5 {[%clk 0:02:43]} 8. Bd3 {[%clk 0:02:45]}  Qh5 {[%clk 0:02:36]} 9. dxc6 {[%clk 0:02:43]}  e5 {[%clk 0:02:33]} 10. Bxa7 {[%clk 0:02:26]}  Nf6 {[%clk 0:02:20]} 11. cxb7+ {[%clk 0:02:16]}  Kxb7 {[%clk 0:02:21]} 12. Ba6+ {[%clk 0:02:10]}  Kxa6 {[%clk 0:02:22]} 13. Qxd8 {[%clk 0:02:08]}  Bxf3 {[%clk 0:02:21]} 14. Qd3+ {[%clk 0:01:58]}  Kxa7 {[%clk 0:02:19]} 15. gxf3 {[%clk 0:01:58]}  Bb4 {[%clk 0:02:12]} 16. O-O-O {[%clk 0:01:55]}  Qg5+ {[%clk 0:01:57]} 17. Kb1 {[%clk 0:01:55]}  Rb8 {[%clk 0:01:53]} 18. Nb5+ {[%clk 0:01:48]}  Ka8 {[%clk 0:01:52]} 19. Qc4 {[%clk 0:01:43]}  c5 {[%clk 0:01:46]} 20. Rd6 {[%clk 0:01:22]}  Kb7 {[%clk 0:01:27]} 21. Nc3 {[%clk 0:00:59]}  Kc7 {[%clk 0:01:12]} 22. Qa6 {[%clk 0:00:59]}  Rb7 {[%clk 0:00:55]} 23. Qc6+ {[%clk 0:00:55]}  Kb8 {[%clk 0:00:55]} 24. Rd8+ {[%clk 0:00:54]}  Ka7 {[%clk 0:00:55]} 25. Nb5+ {[%clk 0:00:46]}  Rxb5 {[%clk 0:00:55]} 26. Ra8# {[%clk 0:00:46]} 1-0

[Event "November 21 Early 2023"]
[Site "https://www.chess.com"]
[Date "2023.11.21"]
[Round "2"]
[White "Cruz Mendez, Jean Marco"]
[Black "Valy02chess"]
[Result "1-0"]
[Board "218"]
[TimeControl "180+1"]
[WhiteFideId "3526402"]
[WhiteElo "2064"]
[BlackElo "2213"]
[WhiteTeam "CUB"]
[WhiteClock "0:00:49"]
[BlackClock "0:00:02"]

1. Nf3 {[%clk 0:03:00]}  d5 {[%clk 0:02:57]} 2. g3 {[%clk 0:03:01]}  g6 {[%clk 0:02:55]} 3. Bg2 {[%clk 0:03:01]}  Bg7 {[%clk 0:02:55]} 4. O-O {[%clk 0:03:00]}  e5 {[%clk 0:02:55]} 5. c4 {[%clk 0:02:59]}  c6 {[%clk 0:02:51]} 6. d3 {[%clk 0:02:57]}  Ne7 {[%clk 0:02:49]} 7. Nc3 {[%clk 0:02:56]}  O-O {[%clk 0:02:49]} 8. Qb3 {[%clk 0:02:32]}  a5 {[%clk 0:02:43]} 9. a3 {[%clk 0:02:29]}  Na6 {[%clk 0:02:38]} 10. Bg5 {[%clk 0:02:23]}  Nc5 {[%clk 0:02:37]} 11. Qc2 {[%clk 0:02:12]}  f6 {[%clk 0:02:20]} 12. Bd2 {[%clk 0:02:12]}  a4 {[%clk 0:02:18]} 13. cxd5 {[%clk 0:02:08]}  cxd5 {[%clk 0:02:16]} 14. d4 {[%clk 0:01:55]}  Nb3 {[%clk 0:02:15]} 15. Rad1 {[%clk 0:01:54]}  Bf5 {[%clk 0:02:13]} 16. e4 {[%clk 0:01:51]}  dxe4 {[%clk 0:02:10]} 17. Nxe4 {[%clk 0:01:50]}  Rc8 {[%clk 0:02:02]} 18. Qd3 {[%clk 0:01:49]}  Nc5 {[%clk 0:01:37]} 19. Qc4+ {[%clk 0:01:44]}  Be6 {[%clk 0:01:37]} 20. Qe2 {[%clk 0:01:43]}  Nxe4 {[%clk 0:01:32]} 21. Qxe4 {[%clk 0:01:44]}  Bd5 {[%clk 0:01:32]} 22. Qe2 {[%clk 0:01:42]}  e4 {[%clk 0:01:30]} 23. Ne1 {[%clk 0:01:41]}  f5 {[%clk 0:01:29]} 24. Bc3 {[%clk 0:01:39]}  Bc4 {[%clk 0:01:27]} 25. Qc2 {[%clk 0:01:37]}  Bxf1 {[%clk 0:01:20]} 26. Bxf1 {[%clk 0:01:37]}  Qd7 {[%clk 0:01:00]} 27. Ng2 {[%clk 0:01:34]}  Nd5 {[%clk 0:00:52]} 28. Qd2 {[%clk 0:01:33]}  Qc6 {[%clk 0:00:42]} 29. Rc1 {[%clk 0:01:30]}  Nxc3 {[%clk 0:00:33]} 30. bxc3 {[%clk 0:01:31]}  Qd6 {[%clk 0:00:31]} 31. Qb2 {[%clk 0:01:30]}  b6 {[%clk 0:00:26]} 32. Rb1 {[%clk 0:01:29]}  Rc7 {[%clk 0:00:21]} 33. Ne3 {[%clk 0:01:26]}  Rfc8 {[%clk 0:00:20]} 34. Nd1 {[%clk 0:01:04]}  Bf8 {[%clk 0:00:15]} 35. Qxb6 {[%clk 0:01:03]}  Qxb6 {[%clk 0:00:15]} 36. Rxb6 {[%clk 0:01:03]}  Bxa3 {[%clk 0:00:14]} 37. Ra6 {[%clk 0:01:04]}  Be7 {[%clk 0:00:13]} 38. Rxa4 {[%clk 0:01:03]}  Rxc3 {[%clk 0:00:11]} 39. Nxc3 {[%clk 0:01:03]}  Rxc3 {[%clk 0:00:12]} 40. Bc4+ {[%clk 0:01:00]}  Kg7 {[%clk 0:00:12]} 41. Be6 {[%clk 0:01:01]}  Bf6 {[%clk 0:00:12]} 42. Ra7+ {[%clk 0:00:59]}  Kh6 {[%clk 0:00:11]} 43. Bg8 {[%clk 0:00:59]}  Bxd4 {[%clk 0:00:10]} 44. Rxh7+ {[%clk 0:00:59]}  Kg5 {[%clk 0:00:10]} 45. h4+ {[%clk 0:00:54]}  Kf6 {[%clk 0:00:10]} 46. Rf7+ {[%clk 0:00:53]}  Ke5 {[%clk 0:00:10]} 47. Re7+ {[%clk 0:00:53]}  Kd6 {[%clk 0:00:10]} 48. Re6+ {[%clk 0:00:53]}  Kc5 {[%clk 0:00:10]} 49. Re8 {[%clk 0:00:50]}  Rc1+ {[%clk 0:00:09]} 50. Kg2 {[%clk 0:00:49]}  Kd6 {[%clk 0:00:09]} 51. Rd8+ {[%clk 0:00:49]}  Ke5 {[%clk 0:00:09]} 52. Rd5+ {[%clk 0:00:49]}  Kf6 {[%clk 0:00:09]} 53. Rxd4 {[%clk 0:00:50]}  Kg7 {[%clk 0:00:09]} 54. Bd5 {[%clk 0:00:49]}  Rc2 {[%clk 0:00:09]} 55. Bxe4 {[%clk 0:00:47]}  fxe4 {[%clk 0:00:08]} 56. Rxe4 {[%clk 0:00:48]}  Kf6 {[%clk 0:00:08]} 57. Re3 {[%clk 0:00:49]}  Kf5 {[%clk 0:00:09]} 58. Rf3+ {[%clk 0:00:50]}  Kg4 {[%clk 0:00:09]} 59. Rf4+ {[%clk 0:00:50]}  Kh5 {[%clk 0:00:09]} 60. Kh3 {[%clk 0:00:51]}  g5 {[%clk 0:00:08]} 61. hxg5 {[%clk 0:00:48]}  Kxg5 {[%clk 0:00:09]} 62. Rf8 {[%clk 0:00:47]}  Rc1 {[%clk 0:00:10]} 63. f4+ {[%clk 0:00:47]}  Kg6 {[%clk 0:00:09]} 64. Kg4 {[%clk 0:00:47]}  Rc4 {[%clk 0:00:09]} 65. Ra8 {[%clk 0:00:47]}  Rb4 {[%clk 0:00:09]} 66. Ra6+ {[%clk 0:00:47]}  Kg7 {[%clk 0:00:09]} 67. Kg5 {[%clk 0:00:47]}  Rb3 {[%clk 0:00:09]} 68. g4 {[%clk 0:00:47]}  Rb5+ {[%clk 0:00:09]} 69. f5 {[%clk 0:00:48]}  Rc5 {[%clk 0:00:09]} 70. Ra7+ {[%clk 0:00:48]}  Kg8 {[%clk 0:00:10]} 71. Kg6 {[%clk 0:00:48]}  Rc6+ {[%clk 0:00:07]} 72. f6 {[%clk 0:00:48]}  Rc8 {[%clk 0:00:05]} 73. g5 {[%clk 0:00:49]}  Kh8 {[%clk 0:00:04]} 74. Rh7+ {[%clk 0:00:48]}  Kg8 {[%clk 0:00:04]} 75. f7+ {[%clk 0:00:48]}  Kf8 {[%clk 0:00:02]} 76. Rh8+ {[%clk 0:00:49]} 1-0

[Event "November 21 Early 2023"]
[Site "https://www.chess.com"]
[Date "2023.11.21"]
[Round "2"]
[White "kingapolak"]
[Black "Sreyas Payyappat"]
[Result "0-1"]
[Board "222"]
[TimeControl "180+1"]
[BlackFideId "46674969"]
[WhiteElo "2195"]
[BlackElo "2043"]
[BlackTeam "IND"]
[WhiteClock "0:00:56"]
[BlackClock "0:00:16"]

1. e4 {[%clk 0:03:00]}  c6 {[%clk 0:02:59]} 2. d4 {[%clk 0:03:00]}  d5 {[%clk 0:03:00]} 3. Nc3 {[%clk 0:03:00]}  dxe4 {[%clk 0:03:00]} 4. Nxe4 {[%clk 0:03:01]}  Nf6 {[%clk 0:03:00]} 5. Nxf6+ {[%clk 0:03:00]}  exf6 {[%clk 0:03:01]} 6. c3 {[%clk 0:03:00]}  Bd6 {[%clk 0:03:01]} 7. Bd3 {[%clk 0:03:00]}  O-O {[%clk 0:02:56]} 8. Qc2 {[%clk 0:03:00]}  Re8+ {[%clk 0:02:56]} 9. Ne2 {[%clk 0:03:01]}  h5 {[%clk 0:02:56]} 10. Be3 {[%clk 0:03:00]}  Nd7 {[%clk 0:02:55]} 11. O-O-O {[%clk 0:03:00]}  Nf8 {[%clk 0:02:54]} 12. Kb1 {[%clk 0:03:00]}  Be6 {[%clk 0:02:52]} 13. Nf4 {[%clk 0:02:57]}  Bxf4 {[%clk 0:02:44]} 14. Bxf4 {[%clk 0:02:58]}  b5 {[%clk 0:02:40]} 15. h3 {[%clk 0:02:39]}  a5 {[%clk 0:02:39]} 16. g4 {[%clk 0:02:39]}  h4 {[%clk 0:02:34]} 17. Rhg1 {[%clk 0:02:30]}  Qd5 {[%clk 0:02:16]} 18. b3 {[%clk 0:02:20]}  a4 {[%clk 0:02:16]} 19. b4 {[%clk 0:02:15]}  Qf3 {[%clk 0:01:49]} 20. Bd6 {[%clk 0:02:05]}  Bd5 {[%clk 0:01:26]} 21. g5 {[%clk 0:02:03]}  f5 {[%clk 0:01:22]} 22. Rde1 {[%clk 0:01:43]}  Nd7 {[%clk 0:00:54]} 23. Bxf5 {[%clk 0:01:36]}  Nb6 {[%clk 0:00:46]} 24. Bg4 {[%clk 0:01:26]}  Qg2 {[%clk 0:00:14]} 25. Rxe8+ {[%clk 0:01:22]}  Rxe8 {[%clk 0:00:15]} 26. Rxg2 {[%clk 0:01:23]}  Bxg2 {[%clk 0:00:15]} 27. Be5 {[%clk 0:01:12]}  Nc4 {[%clk 0:00:14]} 28. Be2 {[%clk 0:01:06]}  Be4 {[%clk 0:00:13]} 29. Bd3 {[%clk 0:01:05]}  Na3+ {[%clk 0:00:13]} 30. Kc1 {[%clk 0:01:04]}  Nxc2 {[%clk 0:00:13]} 31. Kxc2 {[%clk 0:01:05]}  Bxd3+ {[%clk 0:00:12]} 32. Kxd3 {[%clk 0:01:05]}  Re6 {[%clk 0:00:13]} 33. Ke4 {[%clk 0:01:04]}  f6 {[%clk 0:00:13]} 34. gxf6 {[%clk 0:01:03]}  gxf6 {[%clk 0:00:14]} 35. Kf5 {[%clk 0:01:03]}  Kf7 {[%clk 0:00:15]} 36. Bf4 {[%clk 0:01:00]}  Re2 {[%clk 0:00:15]} 37. Be3 {[%clk 0:00:59]}  Rxa2 {[%clk 0:00:15]} 38. Kg4 {[%clk 0:00:59]}  a3 {[%clk 0:00:15]} 39. Kxh4 {[%clk 0:01:00]}  Re2 {[%clk 0:00:16]} 40. Kg4 {[%clk 0:00:56]}  a2 {[%clk 0:00:16]} 0-1